[Event "December 5 Late 2023"]
[Site "https://www.chess.com"]
[Date "2023.12.05"]
[Round "3"]
[White "Modric, Nesa"]
[Black "Monteiro, Luis Felipe Furtado"]
[Result "0-1"]
[Board "187"]
[TimeControl "180+1"]
[WhiteFideId "922579"]
[BlackFideId "22702806"]
[WhiteElo "2304"]
[BlackElo "2001"]
[WhiteTeam "SRB"]
[BlackTeam "BRA"]
[WhiteClock "0:00:00"]
[BlackClock "0:00:07"]

1. e4 {[%clk 0:03:00]}  c6 {[%clk 0:02:58]} 2. d4 {[%clk 0:02:59]}  d5 {[%clk 0:02:59]} 3. e5 {[%clk 0:02:59]}  c5 {[%clk 0:02:55]} 4. c3 {[%clk 0:02:59]}  Nc6 {[%clk 0:02:55]} 5. Be2 {[%clk 0:02:59]}  Bf5 {[%clk 0:02:54]} 6. Nf3 {[%clk 0:02:57]}  e6 {[%clk 0:02:54]} 7. O-O {[%clk 0:02:55]}  Nge7 {[%clk 0:02:52]} 8. a3 {[%clk 0:02:55]}  Bxb1 {[%clk 0:02:35]} 9. Rxb1 {[%clk 0:02:53]}  Ng6 {[%clk 0:02:35]} 10. b4 {[%clk 0:02:51]}  cxd4 {[%clk 0:02:27]} 11. cxd4 {[%clk 0:02:50]}  Be7 {[%clk 0:02:27]} 12. g3 {[%clk 0:02:48]}  O-O {[%clk 0:02:18]} 13. h4 {[%clk 0:02:38]}  Re8 {[%clk 0:02:09]} 14. h5 {[%clk 0:02:35]}  Nf8 {[%clk 0:01:55]} 15. Kg2 {[%clk 0:02:35]}  Rc8 {[%clk 0:01:52]} 16. h6 {[%clk 0:02:29]}  g6 {[%clk 0:01:47]} 17. Be3 {[%clk 0:02:24]}  a6 {[%clk 0:01:31]} 18. Qd2 {[%clk 0:02:20]}  b5 {[%clk 0:01:30]} 19. Rbc1 {[%clk 0:02:08]}  Nd7 {[%clk 0:01:28]} 20. Ne1 {[%clk 0:02:00]}  Nb6 {[%clk 0:01:28]} 21. f4 {[%clk 0:01:48]}  Nc4 {[%clk 0:01:21]} 22. Qd3 {[%clk 0:01:39]}  a5 {[%clk 0:01:09]} 23. g4 {[%clk 0:01:15]}  axb4 {[%clk 0:01:08]} 24. axb4 {[%clk 0:01:06]}  Nxb4 {[%clk 0:01:07]} 25. Qb3 {[%clk 0:01:05]}  Qc7 {[%clk 0:00:53]} 26. Nf3 {[%clk 0:00:44]}  Ra8 {[%clk 0:00:48]} 27. Ra1 {[%clk 0:00:38]}  Rxa1 {[%clk 0:00:39]} 28. Rxa1 {[%clk 0:00:38]}  Nxe3+ {[%clk 0:00:39]} 29. Qxe3 {[%clk 0:00:37]}  Nc2 {[%clk 0:00:40]} 30. Qc1 {[%clk 0:00:33]}  Qc3 {[%clk 0:00:40]} 31. Kf2 {[%clk 0:00:13]}  Qxa1 {[%clk 0:00:34]} 32. Qxc2 {[%clk 0:00:11]}  b4 {[%clk 0:00:34]} 33. f5 {[%clk 0:00:12]}  Qc3 {[%clk 0:00:26]} 34. Qa4 {[%clk 0:00:10]}  Rc8 {[%clk 0:00:20]} 35. fxe6 {[%clk 0:00:10]}  fxe6 {[%clk 0:00:19]} 36. Qd7 {[%clk 0:00:10]}  Qxf3+ {[%clk 0:00:17]} 37. Kxf3 {[%clk 0:00:07]}  Rc3+ {[%clk 0:00:15]} 38. Kg2 {[%clk 0:00:06]}  Kf7 {[%clk 0:00:15]} 39. Qb5 {[%clk 0:00:03]}  b3 {[%clk 0:00:15]} 40. Bf3 {[%clk 0:00:04]}  Rc2+ {[%clk 0:00:14]} 41. Kg3 {[%clk 0:00:04]}  b2 {[%clk 0:00:15]} 42. g5 {[%clk 0:00:04]}  Bxg5 {[%clk 0:00:15]} 43. Bg4 {[%clk 0:00:03]}  Be7 {[%clk 0:00:10]} 44. Qb6 {[%clk 0:00:03]}  Rc3+ {[%clk 0:00:08]} 45. Kg2 {[%clk 0:00:02]}  Rc2+ {[%clk 0:00:08]} 46. Kg3 {[%clk 0:00:02]}  Rc3+ {[%clk 0:00:09]} 47. Bf3 {[%clk 0:00:02]}  Ba3 {[%clk 0:00:07]} 48. Qb7+ {[%clk 0:00:02]}  Ke8 {[%clk 0:00:07]} 49. Qb8+ {[%clk 0:00:02]}  Kd7 {[%clk 0:00:07]} 50. Qb7+ {[%clk 0:00:02]}  Rc7 {[%clk 0:00:07]} 51. Qb5+ {[%clk 0:00:02]}  Ke7 {[%clk 0:00:07]} 52. Qb3 {[%clk 0:00:01]}  Ra7 {[%clk 0:00:07]} 53. Bg4 {[%clk 0:00:00]}  Kf7 {[%clk 0:00:07]} 0-1

[Event "December 5 Late 2023"]
[Site "https://www.chess.com"]
[Date "2023.12.05"]
[Round "3"]
[White "Dmitriev, Sergey"]
[Black "Khokhlova, Daria"]
[Result "0-1"]
[Board "189"]
[TimeControl "180+1"]
[WhiteFideId "14101785"]
[BlackFideId "24182729"]
[WhiteElo "1959"]
[BlackElo "2297"]
[WhiteTeam "UKR"]
[BlackTeam "FID"]
[WhiteClock "0:00:32"]
[BlackClock "0:00:38"]

1. e4 {[%clk 0:03:00]}  c5 {[%clk 0:02:57]} 2. Nf3 {[%clk 0:03:00]}  d6 {[%clk 0:02:57]} 3. c3 {[%clk 0:02:59]}  Nf6 {[%clk 0:02:57]} 4. Qc2 {[%clk 0:02:56]}  Qc7 {[%clk 0:02:56]} 5. Bc4 {[%clk 0:02:54]}  e6 {[%clk 0:02:48]} 6. d4 {[%clk 0:02:50]}  Be7 {[%clk 0:02:12]} 7. O-O {[%clk 0:02:43]}  O-O {[%clk 0:02:10]} 8. Bg5 {[%clk 0:02:30]}  h6 {[%clk 0:02:01]} 9. Bh4 {[%clk 0:02:28]}  cxd4 {[%clk 0:01:53]} 10. cxd4 {[%clk 0:02:26]}  d5 {[%clk 0:01:47]} 11. e5 {[%clk 0:02:18]}  Qxc4 {[%clk 0:01:39]} 12. Qxc4 {[%clk 0:02:15]}  dxc4 {[%clk 0:01:40]} 13. exf6 {[%clk 0:02:15]}  Bxf6 {[%clk 0:01:39]} 14. Bxf6 {[%clk 0:02:11]}  gxf6 {[%clk 0:01:40]} 15. Nbd2 {[%clk 0:02:06]}  b6 {[%clk 0:01:15]} 16. Nxc4 {[%clk 0:02:02]}  Bb7 {[%clk 0:01:15]} 17. Rac1 {[%clk 0:01:45]}  Bxf3 {[%clk 0:01:11]} 18. gxf3 {[%clk 0:01:44]}  Na6 {[%clk 0:01:00]} 19. a3 {[%clk 0:01:37]}  Rac8 {[%clk 0:00:55]} 20. Nd6 {[%clk 0:01:36]}  Rc7 {[%clk 0:00:45]} 21. Rxc7 {[%clk 0:01:30]}  Nxc7 {[%clk 0:00:44]} 22. Rc1 {[%clk 0:01:23]}  Nd5 {[%clk 0:00:44]} 23. Nb5 {[%clk 0:01:12]}  a6 {[%clk 0:00:44]} 24. Nc7 {[%clk 0:01:12]}  Rc8 {[%clk 0:00:43]} 25. Re1 {[%clk 0:00:58]}  Rxc7 {[%clk 0:00:42]} 26. Kg2 {[%clk 0:00:58]}  Rc2 {[%clk 0:00:43]} 27. b4 {[%clk 0:00:57]}  Ra2 {[%clk 0:00:42]} 28. Rc1 {[%clk 0:00:55]}  Rxa3 {[%clk 0:00:42]} 29. Rc8+ {[%clk 0:00:54]}  Kg7 {[%clk 0:00:42]} 30. Rb8 {[%clk 0:00:53]}  b5 {[%clk 0:00:42]} 31. f4 {[%clk 0:00:51]}  Nxb4 {[%clk 0:00:42]} 32. Rb7 {[%clk 0:00:49]}  Nd3 {[%clk 0:00:42]} 33. f3 {[%clk 0:00:48]}  Nxf4+ {[%clk 0:00:42]} 34. Kg3 {[%clk 0:00:48]}  Nd5 {[%clk 0:00:43]} 35. Kg4 {[%clk 0:00:48]}  b4 {[%clk 0:00:43]} 36. Rb8 {[%clk 0:00:47]}  b3 {[%clk 0:00:42]} 37. f4 {[%clk 0:00:47]}  a5 {[%clk 0:00:42]} 38. f5 {[%clk 0:00:48]}  Ne3+ {[%clk 0:00:42]} 39. Kf4 {[%clk 0:00:46]}  Nxf5 {[%clk 0:00:42]} 40. d5 {[%clk 0:00:45]}  a4 {[%clk 0:00:41]} 41. dxe6 {[%clk 0:00:44]}  fxe6 {[%clk 0:00:41]} 42. Rb7+ {[%clk 0:00:45]}  Kg6 {[%clk 0:00:41]} 43. h3 {[%clk 0:00:39]}  Ra2 {[%clk 0:00:41]} 44. Rb8 {[%clk 0:00:40]}  b2 {[%clk 0:00:41]} 45. Rg8+ {[%clk 0:00:40]}  Kf7 {[%clk 0:00:41]} 46. Rg1 {[%clk 0:00:41]}  a3 {[%clk 0:00:40]} 47. h4 {[%clk 0:00:38]}  Ra1 {[%clk 0:00:40]} 48. h5 {[%clk 0:00:32]}  Rxg1 {[%clk 0:00:38]} 0-1

[Event "December 5 Late 2023"]
[Site "https://www.chess.com"]
[Date "2023.12.05"]
[Round "4"]
[White "Drygalov, Andrey"]
[Black "Carlsen, Magnus"]
[Result "0-1"]
[Board "1"]
[TimeControl "180+1"]
[WhiteFideId "24171735"]
[BlackFideId "1503014"]
[WhiteElo "2968"]
[BlackElo "3309"]
[WhiteTeam "RUS"]
[BlackTeam "NOR"]
[WhiteClock "0:00:00"]
[BlackClock "0:00:06"]

1. e4 {[%clk 0:03:00]}  c6 {[%clk 0:02:58]} 2. Nf3 {[%clk 0:03:00]}  Na6 {[%clk 0:02:50]} 3. d4 {[%clk 0:03:00]}  Nc7 {[%clk 0:02:44]} 4. Nc3 {[%clk 0:02:58]}  g6 {[%clk 0:02:43]} 5. Bd3 {[%clk 0:02:58]}  d5 {[%clk 0:02:33]} 6. h3 {[%clk 0:02:56]}  Bg7 {[%clk 0:02:32]} 7. O-O {[%clk 0:02:56]}  Nh6 {[%clk 0:02:31]} 8. Ne2 {[%clk 0:02:24]}  O-O {[%clk 0:02:29]} 9. c3 {[%clk 0:02:23]}  f6 {[%clk 0:02:29]} 10. Ng3 {[%clk 0:02:22]}  Nf7 {[%clk 0:02:29]} 11. Re1 {[%clk 0:02:21]}  e5 {[%clk 0:02:29]} 12. dxe5 {[%clk 0:02:06]}  fxe5 {[%clk 0:02:28]} 13. Bc2 {[%clk 0:02:05]}  Re8 {[%clk 0:02:27]} 14. Be3 {[%clk 0:02:04]}  Be6 {[%clk 0:02:26]} 15. Qe2 {[%clk 0:02:01]}  d4 {[%clk 0:02:24]} 16. cxd4 {[%clk 0:01:53]}  exd4 {[%clk 0:02:24]} 17. Bf4 {[%clk 0:01:53]}  c5 {[%clk 0:02:24]} 18. Bd3 {[%clk 0:01:48]}  a5 {[%clk 0:02:17]} 19. Qc2 {[%clk 0:01:34]}  b6 {[%clk 0:02:14]} 20. a3 {[%clk 0:01:19]}  a4 {[%clk 0:02:11]} 21. e5 {[%clk 0:01:13]}  Bb3 {[%clk 0:02:09]} 22. Qc1 {[%clk 0:01:08]}  Ne6 {[%clk 0:02:09]} 23. Bb5 {[%clk 0:00:49]}  Rf8 {[%clk 0:01:39]} 24. Bd2 {[%clk 0:00:45]}  Bd5 {[%clk 0:01:39]} 25. Ne4 {[%clk 0:00:46]}  Nxe5 {[%clk 0:01:31]} 26. Nxe5 {[%clk 0:00:30]}  Bxe5 {[%clk 0:01:32]} 27. Nxc5 {[%clk 0:00:31]}  Nxc5 {[%clk 0:01:28]} 28. Rxe5 {[%clk 0:00:30]}  Nb3 {[%clk 0:01:27]} 29. Rxd5 {[%clk 0:00:25]}  Qf6 {[%clk 0:01:27]} 30. Qe1 {[%clk 0:00:17]}  Nxa1 {[%clk 0:01:25]} 31. Bg5 {[%clk 0:00:17]}  Nc2 {[%clk 0:01:19]} 32. Qd2 {[%clk 0:00:18]}  Qf7 {[%clk 0:01:15]} 33. Rd7 {[%clk 0:00:16]}  Qb3 {[%clk 0:01:14]} 34. Bd3 {[%clk 0:00:14]}  Rac8 {[%clk 0:01:01]} 35. Bxc2 {[%clk 0:00:14]}  Rxc2 {[%clk 0:00:25]} 36. Qxd4 {[%clk 0:00:15]}  Qxb2 {[%clk 0:00:26]} 37. Qd5+ {[%clk 0:00:14]}  Kh8 {[%clk 0:00:25]} 38. Qb7 {[%clk 0:00:10]}  Rcxf2 {[%clk 0:00:19]} 39. Rxh7+ {[%clk 0:00:03]}  Kg8 {[%clk 0:00:19]} 40. Re7 {[%clk 0:00:04]}  R2f7 {[%clk 0:00:17]} 41. Rxf7 {[%clk 0:00:02]}  Rxf7 {[%clk 0:00:16]} 42. Qd5 {[%clk 0:00:02]}  Qxa3 {[%clk 0:00:12]} 43. Qe6 {[%clk 0:00:03]}  Qd3 {[%clk 0:00:10]} 44. Qe8+ {[%clk 0:00:02]}  Kg7 {[%clk 0:00:09]} 45. Be3 {[%clk 0:00:03]}  Qd1+ {[%clk 0:00:07]} 46. Kh2 {[%clk 0:00:03]}  Qd6+ {[%clk 0:00:07]} 47. Kg1 {[%clk 0:00:02]}  Re7 {[%clk 0:00:06]} 48. Bd4+ {[%clk 0:00:00]}  Qxd4+ {[%clk 0:00:06]} 0-1

[Event "December 5 Late 2023"]
[Site "https://www.chess.com"]
[Date "2023.12.05"]
[Round "4"]
[White "Zhigalko, Sergei"]
[Black "Aronian, Levon"]
[Result "1-0"]
[Board "5"]
[TimeControl "180+1"]
[WhiteFideId "13502956"]
[BlackFideId "13300474"]
[WhiteElo "2916"]
[BlackElo "3120"]
[WhiteTeam "BLR"]
[BlackTeam "USA"]
[WhiteClock "0:00:06"]
[BlackClock "0:00:00"]

1. e4 {[%clk 0:03:00]}  c5 {[%clk 0:02:59]} 2. Nf3 {[%clk 0:03:00]}  e6 {[%clk 0:03:00]} 3. c3 {[%clk 0:03:01]}  Nf6 {[%clk 0:02:58]} 4. e5 {[%clk 0:03:01]}  Nd5 {[%clk 0:02:58]} 5. Bc4 {[%clk 0:03:02]}  d6 {[%clk 0:02:44]} 6. d4 {[%clk 0:03:02]}  Nb6 {[%clk 0:02:30]} 7. Bd3 {[%clk 0:03:00]}  Bd7 {[%clk 0:02:20]} 8. dxc5 {[%clk 0:02:57]}  dxc5 {[%clk 0:02:20]} 9. Qe2 {[%clk 0:02:56]}  Bc6 {[%clk 0:02:15]} 10. O-O {[%clk 0:02:44]}  Qc7 {[%clk 0:02:05]} 11. Bf4 {[%clk 0:02:33]}  h6 {[%clk 0:01:54]} 12. Nbd2 {[%clk 0:02:20]}  N8d7 {[%clk 0:01:38]} 13. Ne4 {[%clk 0:02:12]}  O-O-O {[%clk 0:01:03]} 14. Nd6+ {[%clk 0:01:58]}  Bxd6 {[%clk 0:01:03]} 15. exd6 {[%clk 0:01:59]}  Qb8 {[%clk 0:01:03]} 16. Ne5 {[%clk 0:02:00]}  Nxe5 {[%clk 0:01:00]} 17. Qxe5 {[%clk 0:02:01]}  Nd7 {[%clk 0:00:52]} 18. Qe3 {[%clk 0:01:47]}  e5 {[%clk 0:00:52]} 19. Bg3 {[%clk 0:01:47]}  Qxd6 {[%clk 0:00:51]} 20. Bf5 {[%clk 0:01:43]}  f6 {[%clk 0:00:48]} 21. Rad1 {[%clk 0:01:34]}  Qe7 {[%clk 0:00:48]} 22. f4 {[%clk 0:01:28]}  e4 {[%clk 0:00:48]} 23. b4 {[%clk 0:01:12]}  b6 {[%clk 0:00:46]} 24. a4 {[%clk 0:00:51]}  cxb4 {[%clk 0:00:42]} 25. cxb4 {[%clk 0:00:46]}  Kb8 {[%clk 0:00:39]} 26. a5 {[%clk 0:00:25]}  bxa5 {[%clk 0:00:39]} 27. Bf2 {[%clk 0:00:23]}  Nb6 {[%clk 0:00:37]} 28. bxa5 {[%clk 0:00:23]}  Nd5 {[%clk 0:00:36]} 29. Qb3+ {[%clk 0:00:15]}  Ka8 {[%clk 0:00:35]} 30. Qc4 {[%clk 0:00:12]}  Qb7 {[%clk 0:00:16]} 31. Bxe4 {[%clk 0:00:12]}  Ne7 {[%clk 0:00:13]} 32. a6 {[%clk 0:00:12]}  Qc7 {[%clk 0:00:11]} 33. Rc1 {[%clk 0:00:09]}  Rc8 {[%clk 0:00:12]} 34. Qb4 {[%clk 0:00:09]}  Rb8 {[%clk 0:00:08]} 35. Qa4 {[%clk 0:00:06]}  Rhc8 {[%clk 0:00:08]} 36. Rxc6 {[%clk 0:00:06]}  Nxc6 {[%clk 0:00:07]} 37. Rc1 {[%clk 0:00:07]}  Rb2 {[%clk 0:00:05]} 38. Rxc6 {[%clk 0:00:06]}  Rb1+ {[%clk 0:00:00]} 39. Rc1+ {[%clk 0:00:06]} 1-0

[Event "December 5 Late 2023"]
[Site "https://www.chess.com"]
[Date "2023.12.05"]
[Round "4"]
[White "Tari, Aryan"]
[Black "Kazakouski, Valery"]
[Result "1-0"]
[Board "11"]
[TimeControl "180+1"]
[WhiteFideId "1510045"]
[BlackFideId "13507443"]
[WhiteElo "3006"]
[BlackElo "2854"]
[WhiteTeam "NOR"]
[BlackTeam "LTU"]
[WhiteClock "0:00:26"]
[BlackClock "0:00:08"]

1. e4 {[%clk 0:02:54]}  c5 {[%clk 0:02:58]} 2. Nf3 {[%clk 0:02:54]}  a6 {[%clk 0:02:58]} 3. g3 {[%clk 0:02:49]}  b5 {[%clk 0:02:57]} 4. Bg2 {[%clk 0:02:49]}  Bb7 {[%clk 0:02:57]} 5. d4 {[%clk 0:02:47]}  cxd4 {[%clk 0:02:49]} 6. Nxd4 {[%clk 0:02:47]}  e6 {[%clk 0:02:46]} 7. O-O {[%clk 0:02:42]}  Nc6 {[%clk 0:02:46]} 8. a4 {[%clk 0:02:37]}  b4 {[%clk 0:02:42]} 9. Be3 {[%clk 0:02:28]}  Qc7 {[%clk 0:02:41]} 10. c3 {[%clk 0:02:26]}  Nf6 {[%clk 0:02:39]} 11. Nd2 {[%clk 0:02:09]}  bxc3 {[%clk 0:02:39]} 12. bxc3 {[%clk 0:02:10]}  Be7 {[%clk 0:02:33]} 13. Rb1 {[%clk 0:02:04]}  O-O {[%clk 0:02:19]} 14. e5 {[%clk 0:02:02]}  Nd5 {[%clk 0:02:01]} 15. Bxd5 {[%clk 0:02:01]}  exd5 {[%clk 0:02:02]} 16. Nf5 {[%clk 0:02:01]}  Rfe8 {[%clk 0:01:53]} 17. Qg4 {[%clk 0:01:45]}  g6 {[%clk 0:01:53]} 18. Nh6+ {[%clk 0:01:38]}  Kg7 {[%clk 0:01:50]} 19. Qf4 {[%clk 0:01:37]}  Rf8 {[%clk 0:01:42]} 20. Ng4 {[%clk 0:01:36]}  g5 {[%clk 0:00:39]} 21. Qf5 {[%clk 0:01:30]}  h6 {[%clk 0:00:40]} 22. h4 {[%clk 0:01:21]}  f6 {[%clk 0:00:38]} 23. h5 {[%clk 0:01:15]}  Nxe5 {[%clk 0:00:30]} 24. Nxe5 {[%clk 0:01:11]}  fxe5 {[%clk 0:00:30]} 25. Qg6+ {[%clk 0:01:11]}  Kh8 {[%clk 0:00:31]} 26. Qxh6+ {[%clk 0:01:12]}  Kg8 {[%clk 0:00:32]} 27. Rb6 {[%clk 0:00:46]}  d6 {[%clk 0:00:27]} 28. Rfb1 {[%clk 0:00:46]}  Bc6 {[%clk 0:00:26]} 29. Bxg5 {[%clk 0:00:40]}  Rae8 {[%clk 0:00:23]} 30. Qg6+ {[%clk 0:00:37]}  Kh8 {[%clk 0:00:23]} 31. Qh6+ {[%clk 0:00:30]}  Kg8 {[%clk 0:00:23]} 32. Qe6+ {[%clk 0:00:30]}  Kh8 {[%clk 0:00:16]} 33. Bxe7 {[%clk 0:00:27]}  Rxe7 {[%clk 0:00:08]} 34. Rxc6 {[%clk 0:00:26]} 1-0

[Event "December 5 Late 2023"]
[Site "https://www.chess.com"]
[Date "2023.12.05"]
[Round "4"]
[White "Xiong, Jeffery"]
[Black "Gledura, Benjamin"]
[Result "1-0"]
[Board "12"]
[TimeControl "180+1"]
[WhiteFideId "2047640"]
[BlackFideId "712779"]
[WhiteElo "3006"]
[BlackElo "2851"]
[WhiteTeam "USA"]
[BlackTeam "HUN"]
[WhiteClock "0:00:45"]
[BlackClock "0:00:16"]

1. Nf3 {[%clk 0:03:00]}  c5 {[%clk 0:02:59]} 2. e4 {[%clk 0:02:59]}  Nc6 {[%clk 0:02:59]} 3. Bb5 {[%clk 0:02:59]}  e6 {[%clk 0:02:59]} 4. O-O {[%clk 0:02:58]}  Nge7 {[%clk 0:02:59]} 5. d4 {[%clk 0:02:52]}  cxd4 {[%clk 0:02:56]} 6. Nxd4 {[%clk 0:02:53]}  Ng6 {[%clk 0:02:55]} 7. Be3 {[%clk 0:02:44]}  Be7 {[%clk 0:02:54]} 8. Be2 {[%clk 0:02:43]}  O-O {[%clk 0:02:51]} 9. c4 {[%clk 0:02:42]}  b6 {[%clk 0:02:51]} 10. Nc3 {[%clk 0:02:42]}  Bb7 {[%clk 0:02:51]} 11. Nb3 {[%clk 0:02:23]}  Bf6 {[%clk 0:02:30]} 12. f4 {[%clk 0:02:01]}  Bxc3 {[%clk 0:02:28]} 13. bxc3 {[%clk 0:02:02]}  d6 {[%clk 0:02:28]} 14. Qd3 {[%clk 0:01:56]}  e5 {[%clk 0:02:18]} 15. f5 {[%clk 0:01:54]}  Nf4 {[%clk 0:02:18]} 16. Bxf4 {[%clk 0:01:50]}  exf4 {[%clk 0:02:19]} 17. Rad1 {[%clk 0:01:50]}  Ne5 {[%clk 0:02:18]} 18. Qxd6 {[%clk 0:01:47]}  Qxd6 {[%clk 0:02:08]} 19. Rxd6 {[%clk 0:01:48]}  Rfd8 {[%clk 0:01:58]} 20. Rd4 {[%clk 0:01:44]}  Nc6 {[%clk 0:01:57]} 21. Rxd8+ {[%clk 0:01:33]}  Rxd8 {[%clk 0:01:57]} 22. Rxf4 {[%clk 0:01:34]}  Ba6 {[%clk 0:01:49]} 23. Kf2 {[%clk 0:01:31]}  Ne5 {[%clk 0:01:08]} 24. c5 {[%clk 0:01:31]}  Bxe2 {[%clk 0:00:53]} 25. Kxe2 {[%clk 0:01:31]}  bxc5 {[%clk 0:00:54]} 26. Nxc5 {[%clk 0:01:28]}  Rb8 {[%clk 0:00:51]} 27. Nd3 {[%clk 0:01:26]}  f6 {[%clk 0:00:49]} 28. Nxe5 {[%clk 0:01:23]}  fxe5 {[%clk 0:00:50]} 29. Rf2 {[%clk 0:01:24]}  Kf7 {[%clk 0:00:48]} 30. Kd3 {[%clk 0:01:24]}  Rd8+ {[%clk 0:00:48]} 31. Kc4 {[%clk 0:01:24]}  Kf6 {[%clk 0:00:47]} 32. Kb5 {[%clk 0:01:24]}  Rb8+ {[%clk 0:00:46]} 33. Ka5 {[%clk 0:01:20]}  Rc8 {[%clk 0:00:46]} 34. Rc2 {[%clk 0:01:18]}  Rc4 {[%clk 0:00:46]} 35. Kb5 {[%clk 0:01:17]}  Rxe4 {[%clk 0:00:46]} 36. c4 {[%clk 0:01:18]}  Ke7 {[%clk 0:00:47]} 37. c5 {[%clk 0:01:08]}  Kd7 {[%clk 0:00:46]} 38. Rd2+ {[%clk 0:01:06]}  Kc7 {[%clk 0:00:46]} 39. c6 {[%clk 0:01:06]}  Rg4 {[%clk 0:00:20]} 40. Rd7+ {[%clk 0:01:07]}  Kc8 {[%clk 0:00:20]} 41. g3 {[%clk 0:00:59]}  a6+ {[%clk 0:00:19]} 42. Kxa6 {[%clk 0:00:46]}  Ra4+ {[%clk 0:00:19]} 43. Kb6 {[%clk 0:00:46]}  Rxa2 {[%clk 0:00:18]} 44. Rxg7 {[%clk 0:00:45]}  Rb2+ {[%clk 0:00:18]} 45. Kc5 {[%clk 0:00:45]}  Rxh2 {[%clk 0:00:16]} 46. f6 {[%clk 0:00:45]} 1-0

[Event "December 5 Late 2023"]
[Site "https://www.chess.com"]
[Date "2023.12.05"]
[Round "4"]
[White "Henriquez Villagra, Cristobal"]
[Black "Miladinovic, Igor"]
[Result "1/2-1/2"]
[Board "13"]
[TimeControl "180+1"]
[WhiteFideId "3409350"]
[BlackFideId "4203380"]
[WhiteElo "3001"]
[BlackElo "2811"]
[WhiteTeam "CHI"]
[BlackTeam "SRB"]
[WhiteClock "0:00:20"]
[BlackClock "0:00:45"]

1. g3 {[%clk 0:03:00]}  d5 {[%clk 0:02:59]} 2. Bg2 {[%clk 0:03:00]}  e5 {[%clk 0:02:59]} 3. c4 {[%clk 0:02:53]}  d4 {[%clk 0:02:58]} 4. d3 {[%clk 0:02:53]}  Nc6 {[%clk 0:02:58]} 5. Nf3 {[%clk 0:02:53]}  Bb4+ {[%clk 0:02:57]} 6. Nbd2 {[%clk 0:02:53]}  a5 {[%clk 0:02:58]} 7. O-O {[%clk 0:02:51]}  Nf6 {[%clk 0:02:58]} 8. Ne1 {[%clk 0:02:20]}  O-O {[%clk 0:02:55]} 9. Nc2 {[%clk 0:02:19]}  Be7 {[%clk 0:02:54]} 10. a3 {[%clk 0:02:19]}  Nd7 {[%clk 0:02:54]} 11. Rb1 {[%clk 0:02:18]}  a4 {[%clk 0:02:54]} 12. b4 {[%clk 0:01:53]}  axb3 {[%clk 0:02:53]} 13. Nxb3 {[%clk 0:01:54]}  h6 {[%clk 0:02:46]} 14. e3 {[%clk 0:01:54]}  dxe3 {[%clk 0:02:35]} 15. Bxe3 {[%clk 0:01:55]}  Nf6 {[%clk 0:02:35]} 16. Nc5 {[%clk 0:01:48]}  Bxc5 {[%clk 0:02:32]} 17. Bxc5 {[%clk 0:01:48]}  Re8 {[%clk 0:02:32]} 18. Ne3 {[%clk 0:01:48]}  Nd4 {[%clk 0:02:03]} 19. Nd5 {[%clk 0:01:34]}  c6 {[%clk 0:01:56]} 20. Bb6 {[%clk 0:01:31]}  Qd6 {[%clk 0:01:48]} 21. Nc7 {[%clk 0:01:27]}  Rxa3 {[%clk 0:01:32]} 22. Nxe8 {[%clk 0:01:20]}  Nxe8 {[%clk 0:01:32]} 23. Re1 {[%clk 0:01:20]}  Nf6 {[%clk 0:01:24]} 24. h3 {[%clk 0:01:12]}  Bf5 {[%clk 0:01:23]} 25. Bxd4 {[%clk 0:01:10]}  Qxd4 {[%clk 0:01:22]} 26. Rxb7 {[%clk 0:01:05]}  Bxd3 {[%clk 0:01:07]} 27. Qc1 {[%clk 0:00:55]}  Rc3 {[%clk 0:00:49]} 28. Qe3 {[%clk 0:00:54]}  Qxe3 {[%clk 0:00:46]} 29. Rxe3 {[%clk 0:00:54]}  e4 {[%clk 0:00:46]} 30. f3 {[%clk 0:00:47]}  Rc1+ {[%clk 0:00:45]} 31. Kh2 {[%clk 0:00:47]}  Rc2 {[%clk 0:00:46]} 32. Kg1 {[%clk 0:00:39]}  Rc1+ {[%clk 0:00:45]} 33. Kh2 {[%clk 0:00:38]}  Rc2 {[%clk 0:00:46]} 34. Kg1 {[%clk 0:00:20]}  Rc1+ {[%clk 0:00:45]} 1/2-1/2

[Event "December 5 Late 2023"]
[Site "https://www.chess.com"]
[Date "2023.12.05"]
[Round "4"]
[White "Bok, Benjamin"]
[Black "Suder, Jakub"]
[Result "1-0"]
[Board "16"]
[TimeControl "180+1"]
[WhiteFideId "1017063"]
[BlackFideId "1195310"]
[WhiteElo "2981"]
[BlackElo "2548"]
[WhiteTeam "NED"]
[BlackTeam "POL"]
[WhiteClock "0:00:06"]
[BlackClock "0:00:28"]

1. d4 {[%clk 0:03:00]}  d5 {[%clk 0:02:59]} 2. c4 {[%clk 0:03:00]}  e6 {[%clk 0:03:00]} 3. Nc3 {[%clk 0:03:00]}  a6 {[%clk 0:03:00]} 4. cxd5 {[%clk 0:03:00]}  exd5 {[%clk 0:03:01]} 5. Nf3 {[%clk 0:03:00]}  Nf6 {[%clk 0:03:01]} 6. Bg5 {[%clk 0:03:00]}  Be6 {[%clk 0:03:02]} 7. e3 {[%clk 0:03:00]}  Nbd7 {[%clk 0:03:02]} 8. Bd3 {[%clk 0:02:59]}  Bd6 {[%clk 0:03:03]} 9. h3 {[%clk 0:02:57]}  c6 {[%clk 0:03:03]} 10. Bf4 {[%clk 0:02:57]}  Qb8 {[%clk 0:03:03]} 11. Qd2 {[%clk 0:02:51]}  O-O {[%clk 0:03:03]} 12. O-O {[%clk 0:02:51]}  Re8 {[%clk 0:03:03]} 13. Rfe1 {[%clk 0:02:42]}  Nf8 {[%clk 0:03:02]} 14. b4 {[%clk 0:02:29]}  Ng6 {[%clk 0:02:55]} 15. Bxd6 {[%clk 0:02:25]}  Qxd6 {[%clk 0:02:55]} 16. Reb1 {[%clk 0:02:09]}  Ne7 {[%clk 0:02:46]} 17. Qc2 {[%clk 0:02:06]}  g6 {[%clk 0:02:41]} 18. Na4 {[%clk 0:02:03]}  Bf5 {[%clk 0:02:36]} 19. Nc5 {[%clk 0:02:03]}  Qc7 {[%clk 0:02:20]} 20. a4 {[%clk 0:01:58]}  Bxd3 {[%clk 0:02:15]} 21. Qxd3 {[%clk 0:01:56]}  Nf5 {[%clk 0:02:14]} 22. b5 {[%clk 0:01:52]}  axb5 {[%clk 0:02:12]} 23. axb5 {[%clk 0:01:53]}  Ne4 {[%clk 0:02:04]} 24. Rxa8 {[%clk 0:01:50]}  Rxa8 {[%clk 0:02:04]} 25. Nxe4 {[%clk 0:01:41]}  dxe4 {[%clk 0:02:02]} 26. Qxe4 {[%clk 0:01:41]}  Nd6 {[%clk 0:02:02]} 27. Qc2 {[%clk 0:01:38]}  f6 {[%clk 0:01:46]} 28. bxc6 {[%clk 0:01:36]}  bxc6 {[%clk 0:01:44]} 29. Ne1 {[%clk 0:01:30]}  Kg7 {[%clk 0:01:40]} 30. Nd3 {[%clk 0:01:30]}  Nf5 {[%clk 0:01:32]} 31. Nc5 {[%clk 0:01:28]}  Qd6 {[%clk 0:01:26]} 32. Rb7+ {[%clk 0:01:14]}  Kh8 {[%clk 0:01:26]} 33. Qb1 {[%clk 0:01:10]}  Nh4 {[%clk 0:01:18]} 34. Rd7 {[%clk 0:01:01]}  Qf8 {[%clk 0:01:11]} 35. Qb7 {[%clk 0:00:54]}  Nf5 {[%clk 0:01:09]} 36. g4 {[%clk 0:00:38]}  Ng7 {[%clk 0:01:03]} 37. Kg2 {[%clk 0:00:32]}  Re8 {[%clk 0:00:59]} 38. Rf7 {[%clk 0:00:24]}  Qg8 {[%clk 0:00:57]} 39. Rxf6 {[%clk 0:00:24]}  h5 {[%clk 0:00:55]} 40. Rxg6 {[%clk 0:00:23]}  Qd5+ {[%clk 0:00:52]} 41. e4 {[%clk 0:00:19]}  Qxd4 {[%clk 0:00:52]} 42. Rh6+ {[%clk 0:00:17]}  Kg8 {[%clk 0:00:52]} 43. Qb3+ {[%clk 0:00:18]}  Kf8 {[%clk 0:00:51]} 44. Rh8+ {[%clk 0:00:10]}  Ke7 {[%clk 0:00:51]} 45. Qb7+ {[%clk 0:00:11]}  Kd6 {[%clk 0:00:49]} 46. Rxe8 {[%clk 0:00:08]}  Nxe8 {[%clk 0:00:47]} 47. Qd7+ {[%clk 0:00:06]}  Kxc5 {[%clk 0:00:47]} 48. Qxe8 {[%clk 0:00:07]}  hxg4 {[%clk 0:00:43]} 49. hxg4 {[%clk 0:00:08]}  Qg7 {[%clk 0:00:43]} 50. Kg3 {[%clk 0:00:06]}  Kd6 {[%clk 0:00:39]} 51. f4 {[%clk 0:00:06]}  Qc3+ {[%clk 0:00:36]} 52. Kh4 {[%clk 0:00:06]}  Qf6+ {[%clk 0:00:35]} 53. Kh5 {[%clk 0:00:06]}  Qxf4 {[%clk 0:00:28]} 54. Qb8+ {[%clk 0:00:06]} 1-0